bitfinex-derivatives/quotes_SOLF0:USTF0_20250716
["timestamp","ask_amount","ask_price","bid_price","bid_amount"]
[1752644919375,4.33974306,163.32,163.26,5.0]
[1752644919575,6.1234,163.3,163.26,5.0]
[1752644919769,4.2941737,163.31,163.26,5.0]
[1752644920171,4.2941737,163.29,163.26,5.0]
[1752644920872,4.2941737,163.31,163.26,5.0]
[1752644921474,4.2941737,163.31,163.28,6.1239]
[1752644922674,10.4173737,163.31,163.27,6.1245]
[1752644922877,4.29361805,163.31,163.26,5.0]
[1752644923080,6.1237,163.3,163.26,11.1246]
[1752644923375,4.29361805,163.31,163.27,4.8435452]
[1752644923568,4.29361805,163.31,163.26,5.0]
[1752644923770,10.41691805,163.31,163.27,10.97089296]
[1752644924075,10.41691805,163.31,163.27,6.1243]
[1752644924574,10.41691805,163.31,163.28,6.1241]
[1752644924776,10.41691805,163.31,163.26,5.0]
[1752644924976,6.1234,163.3,163.27,4.85042245]
[1752644925179,6.1234,163.3,163.26,5.0]
[1752644925475,6.1234,163.3,163.26,11.1247]
[1752644925975,6.1238,163.29,163.26,5.0]
[1752644926173,4.29361805,163.28,163.26,5.0]
[1752644927768,10.41801805,163.28,163.26,5.0]
[1752644928369,4.29361805,163.28,163.26,5.0]
[1752644928575,4.29361805,163.27,163.2,5.08414035]
[1752644928774,4.29361805,163.27,163.21,4.86989769]
[1752644928976,4.29361805,163.27,163.24,6.1254]
[1752644929283,0.03923401,163.26,163.24,6.1254]
[1752644929880,0.03923401,163.26,163.23,6.1259]
[1752644930177,0.03923401,163.26,163.24,4.87489067]
[1752644930375,0.03923401,163.26,163.23,6.1259]
[1752644930576,0.03923401,163.26,163.24,4.87726803]
[1752644930771,0.03923401,163.26,163.24,6.1256]
[1752644931076,6.16413401,163.26,163.2,5.08414035]
[1752644931277,6.16413401,163.26,163.22,6.1262]
[1752644931471,6.16413401,163.26,163.19,9.3777584]
[1752644931472,6.16413401,163.26,163.23,4.87825012]
[1752644931777,0.03923401,163.26,163.24,6.1256]
[1752644933071,0.03923401,163.26,163.23,6.1259]
[1752644934178,0.03923401,163.26,163.24,6.1256]
[1752644935578,0.03923401,163.26,163.19,9.3777584]
[1752644935779,0.03923401,163.26,163.2,4.8869638]
[1752644935980,0.03923401,163.26,163.21,4.8869638]
[1752644936280,0.03923401,163.26,163.22,4.8869638]
[1752644936581,0.03923401,163.26,163.19,9.3777584]
[1752644936780,0.03923401,163.26,163.2,4.88605543]
[1752644936974,0.03923401,163.26,163.21,4.88605543]
[1752644937178,0.03923401,163.26,163.23,6.1259]
[1752644937779,0.03923401,163.26,163.24,6.1256]
[1752644939484,0.03923401,163.26,163.25,6.1253]
[1752644943182,0.03923401,163.26,163.2,4.29413218]
[1752644943385,0.03923401,163.26,163.21,4.8882501]
[1752644943587,0.03923401,163.26,163.21,4.29476359]
[1752644943885,0.03923401,163.26,163.23,4.29476359]
[1752644944088,0.03923401,163.26,163.25,6.1253]
[1752644949287,0.03923401,163.26,163.19,4.29363045]
[1752644949486,0.03923401,163.26,163.2,4.89230872]
[1752644949680,0.03923401,163.26,163.19,4.29363045]
[1752644949887,0.03923401,163.26,163.22,6.1262]
[1752644950482,0.03923401,163.26,163.19,4.29363045]
[1752644950688,0.03923401,163.26,163.23,4.29363045]
[1752644951187,6.1235,163.3,163.26,6.1247]
[1752644951687,6.16831378,163.3,163.26,6.1247]
[1752644952087,0.04481378,163.3,163.26,6.1247]
[1752644953093,10.46184423,163.3,163.26,6.1247]
[1752644954082,10.46184423,163.3,163.25,6.1251]
[1752644954886,10.46184423,163.3,163.24,6.1255]
[1752644954887,4.33844423,163.3,163.24,6.1255]
[1752644955088,4.33844423,163.3,163.22,4.29363045]
[1752644955290,4.29363045,163.3,163.22,4.29363045]
[1752644955491,6.124,163.29,163.24,6.1254]
[1752644955692,0.03871328,163.28,163.24,6.1254]
[1752644956592,6.16291328,163.28,163.24,6.1254]
[1752644956793,0.03871328,163.28,163.25,6.1249]
[1752644959193,6.16291328,163.28,163.24,6.1256]
[1752644964097,0.03871328,163.28,163.25,6.125]
[1752644965399,4.33353353,163.28,163.25,6.125]
[1752644966300,0.03871328,163.28,163.25,6.125]
[1752644966501,0.03871328,163.28,163.26,6.1248]
[1752644968602,0.03871328,163.28,163.27,6.1245]
[1752644968802,0.03871328,163.28,163.21,4.29482025]
[1752644969002,0.03871328,163.28,163.22,4.90279464]
[1752644969205,0.03871328,163.28,163.26,6.1247]
[1752644970405,0.03871328,163.28,163.27,6.1245]
[1752644972905,0.03871328,163.28,163.26,6.1247]
[1752644974710,0.03871328,163.28,163.19,5.13574274]
[1752644974920,4.29482025,163.26,163.2,4.90371687]
[1752644975107,4.29482025,163.26,163.21,4.90371687]
[1752644975406,4.29482025,163.26,163.23,6.1257]
[1752644975602,0.04508867,163.25,163.23,6.1257]
[1752644975808,0.04508867,163.25,163.19,4.29482025]
[1752644976008,0.04508867,163.25,163.22,6.1262]
[1752644978309,0.04508867,163.25,163.23,6.126]
[1752644980014,0.04508867,163.25,163.22,6.1263]
[1752644980214,0.04508867,163.25,163.19,4.29482025]
[1752644980215,6.17038867,163.25,163.19,4.29601036]
[1752644980514,6.17038867,163.25,163.2,4.90641823]
[1752644980715,6.17038867,163.25,163.22,6.1264]
[1752644981406,0.04508867,163.25,163.22,6.1264]
[1752644982516,6.17038867,163.25,163.21,6.1266]
[1752644982809,6.17038867,163.25,163.18,4.29601036]
[1752644983013,6.17038867,163.25,163.21,6.1264]
[1752644983214,6.17038867,163.25,163.18,4.29601036]
[1752644983414,6.1259,163.24,163.19,4.88585539]
[1752644983615,6.1259,163.24,163.17,4.29601036]
[1752644983816,6.1259,163.24,163.18,4.88704568]
[1752644984018,6.1259,163.24,163.21,6.1267]
[1752644984419,6.16834646,163.23,163.17,4.29601036]
[1752644984618,6.16834646,163.23,163.18,4.88552288]
[1752644984918,6.16834646,163.23,163.17,4.29601036]
[1752644985112,6.16834646,163.23,163.18,4.88521403]
[1752644985316,6.16834646,163.23,163.2,6.1269]
[1752644986220,6.1264,163.22,163.14,5.13574274]
[1752644986518,4.33815682,163.23,163.15,4.88444468]
[1752644986714,4.29601036,163.23,163.14,4.29601036]
[1752644986919,4.33699705,163.21,163.12,533.53601036]
[1752644987111,4.33699705,163.21,163.13,4.88738619]
[1752644987315,4.33699705,163.21,163.14,4.88738619]
[1752644987518,6.1278,163.19,163.12,4.29601036]
[1752644987817,4.33699705,163.21,163.13,4.88558917]
[1752644988019,4.29601036,163.19,163.14,4.88558917]
[1752644988218,10.46844212,163.19,163.15,6.129]
[1752644988820,6.128,163.18,163.14,6.1293]
[1752644989018,4.34064212,163.19,163.1,4.29601036]
[1752644989221,4.34064212,163.19,163.11,4.88518288]
[1752644989416,6.1281,163.18,163.1,4.29601036]
[1752644989723,0.04121438,163.17,163.14,6.1292]
[1752644990219,0.04121438,163.17,163.15,6.1289]
[1752644990418,0.04121438,163.17,163.12,4.29601036]
[1752644990818,181.5,163.22,163.11,4.29601036]
[1752644991017,4.29601036,163.19,163.11,4.29601036]
[1752644991215,0.0402467,163.16,163.1,4.29601036]
[1752644991811,0.0402467,163.16,163.13,6.1295]
[1752644992117,0.0402467,163.16,163.1,4.29601036]
[1752644992822,0.0402467,163.16,163.14,6.1294]
[1752644994415,0.0402467,163.16,163.13,6.1295]
[1752644994821,6.1283,163.17,163.13,6.1295]
[1752644995220,0.04046634,163.16,163.13,6.1295]
[1752644996121,0.04046634,163.16,163.12,6.13]
[1752644996926,0.04046634,163.16,163.13,6.1297]
[1752644998123,0.04046634,163.16,163.11,4.29601036]
[1752644998724,0.04046634,163.16,163.13,6.1296]
[1752645000226,0.04046634,163.16,163.12,6.13]
[1752645000726,6.1283,163.17,163.12,6.1298]
[1752645000927,0.04219082,163.16,163.1,4.29601036]
[1752645001622,0.04219082,163.16,163.13,6.1297]
[1752645001823,0.04219082,163.16,163.12,4.29601036]
[1752645002327,6.128,163.18,163.13,6.1294]
[1752645002525,0.04190569,163.16,163.12,4.29601036]
[1752645002730,0.04190569,163.16,163.13,6.1297]
[1752645002934,0.04190569,163.16,163.1,4.29601036]
[1752645003434,4.29601036,163.18,163.1,4.29601036]
[1752645003729,0.04663572,163.15,163.1,4.29601036]
[1752645004134,0.04663572,163.15,163.12,6.1301]
[1752645004333,0.04663572,163.15,163.1,4.29601036]
[1752645004734,0.04663572,163.15,163.12,6.1301]
[1752645008038,0.04663572,163.15,163.13,6.1297]
[1752645010742,0.04663572,163.15,163.12,6.13]
[1752645013532,0.04663572,163.15,163.05,5.11273782]
[1752645013737,0.04663572,163.15,163.09,4.29601036]
[1752645014040,4.29601036,163.18,163.09,4.29601036]
[1752645014242,0.04098725,163.14,163.11,6.1305]
[1752645014540,33.0,163.2,163.04,721.45557835]
[1752645014728,33.0,163.24,163.08,5.11273782]
[1752645014931,33.0,163.24,163.17,4.29724025]
[1752645015235,6.1263,163.23,163.18,6.1279]
[1752645015435,33.0,163.24,163.18,6.1279]
[1752645015635,39.1259,163.24,163.18,6.1279]
[1752645016838,39.1259,163.24,163.19,6.1274]
[1752645018541,39.1259,163.24,163.18,6.1278]
[1752645018542,6.1261,163.23,163.18,6.1278]
[1752645021844,33.0,163.24,163.2,6.1271]
[1752645025446,33.0,163.24,163.21,6.1268]
[1752645026846,33.04199606,163.24,163.21,6.1268]
[1752645027249,33.04199606,163.24,163.22,6.1264]
[1752645027445,0.04199606,163.24,163.21,4.29710616]
[1752645027747,0.04199606,163.24,163.23,6.126]
[1752645027946,33.0,163.27,163.23,6.126]
[1752645028951,39.1245,163.27,163.23,6.126]
[1752645029454,39.1245,163.27,163.22,6.1262]
[1752645029650,39.1245,163.27,163.21,4.29710616]
[1752645030356,39.1245,163.27,163.22,6.1263]
[1752645031549,39.1245,163.27,163.21,4.29710616]
[1752645031755,39.1245,163.27,163.23,6.126]
[1752645032556,39.1245,163.27,163.22,6.1262]
[1752645034058,39.1245,163.27,163.23,6.126]
[1752645034258,33.0,163.27,163.23,6.126]
[1752645037260,39.1246,163.27,163.23,6.126]
[1752645037461,39.1246,163.27,163.22,6.1262]
[1752645037762,33.0,163.27,163.22,6.1262]
[1752645038558,33.0,163.27,163.23,6.1259]
[1752645039864,39.1247,163.27,163.23,6.1259]
[1752645040963,41.87375651,163.27,163.23,6.1259]
[1752645042267,35.74905651,163.27,163.23,6.1259]
[1752645042561,35.74905651,163.27,163.23,2.74905651]
[1752645043066,41.87355651,163.27,163.23,2.74905651]
[1752645043267,39.1245,163.27,163.23,2.74905651]
[1752645043465,41.87355651,163.27,163.23,2.74905651]
[1752645043865,41.87355651,163.27,163.23,8.87495651]
[1752645044066,6.1249,163.26,163.23,2.74905651]
[1752645044267,2.74905651,163.24,163.19,2.74905651]
[1752645044465,185.60905651,163.24,163.2,6.1269]
[1752645045361,2.74905651,163.23,163.2,6.1269]
[1752645045866,2.74905651,163.23,163.19,6.1274]
[1752645046068,8.87515651,163.23,163.19,6.1274]
[1752645046268,2.74905651,163.23,163.19,6.1274]
[1752645046864,8.87515651,163.23,163.19,6.1274]
[1752645047069,182.86,163.24,163.18,6.1277]
[1752645047368,6.1263,163.23,163.18,6.1277]
[1752645047869,6.1263,163.23,163.19,6.1274]
[1752645051571,6.1263,163.23,163.2,6.1271]
[1752645052267,6.1263,163.23,163.19,6.1273]
[1752645054175,221.9857,163.24,163.17,4.29739927]
[1752645054377,221.9857,163.24,163.18,5.16630494]
[1752645054378,215.86,163.24,163.18,5.16630494]
[1752645054674,215.86,163.24,163.19,5.16630494]
[1752645054873,215.86,163.24,163.17,4.29739927]
[1752645054874,215.86,163.24,163.21,6.1265]
[1752645056076,33.0,163.24,163.21,6.1265]
[1752645056276,33.0,163.24,163.17,4.29739927]
[1752645056277,215.56,163.24,163.17,4.29739927]
[1752645056578,215.56,163.24,163.18,5.16877213]
[1752645056875,215.56,163.24,163.19,5.16877213]
[1752645057070,215.56,163.24,163.2,5.16857292]
[1752645057376,215.56,163.24,163.17,4.29739927]
[1752645057575,215.56,163.24,163.22,6.1261]
[1752645057777,33.0,163.24,163.19,4.29739927]
[1752645057977,33.0,163.24,163.2,5.1701151]
[1752645058177,33.0,163.24,163.21,5.1701151]
[1752645058381,33.0,163.24,163.23,6.126]
[1752645059681,33.0,163.24,163.23,11.30380749]
[1752645060783,182.4,163.25,163.23,11.30380749]
[1752645060983,182.4,163.25,163.24,6.1256]
[1752645062079,182.4,163.25,163.19,9.40816689]
[1752645062281,182.4,163.25,163.2,5.17512859]
[1752645062477,182.4,163.25,163.21,5.17512859]
[1752645062682,182.4,163.25,163.22,5.17512859]
[1752645062877,182.4,163.25,163.19,4.29739927]
[1752645063080,182.4,163.25,163.2,5.17551345]
[1752645063282,182.4,163.25,163.21,5.17551345]
[1752645063484,4.29739927,163.24,163.19,6.1272]
[1752645064188,37.29739927,163.24,163.18,6.1277]
[1752645064388,6.1261,163.23,163.19,5.17744899]
[1752645064587,6.1261,163.23,163.17,4.29739927]
[1752645064886,6.1261,163.23,163.19,6.1275]
[1752645065388,6.1265,163.22,163.19,6.1275]
[1752645066783,6.1262,163.23,163.19,6.1275]
[1752645066989,33.0,163.24,163.16,4.29739927]
[1752645067289,6.1262,163.23,163.17,5.17720016]
[1752645067485,6.1262,163.23,163.19,6.1274]
[1752645068189,6.1262,163.23,163.2,6.1271]
[1752645071489,39.1258,163.24,163.2,6.1271]
[1752645072292,39.1258,163.24,163.21,6.1268]
[1752645072895,2.75064868,163.22,163.21,6.1268]
[1752645075692,2.75064868,163.22,163.2,6.127]
[1752645075998,2.75064868,163.22,163.17,2.75064868]
[1752645075999,8.87704868,163.22,163.17,2.75064868]
[1752645076195,2.75064868,163.21,163.17,2.75064868]
[1752645076698,2.75064868,163.21,163.19,6.1274]
[1752645077094,6.1262,163.23,163.2,6.1271]
[1752645077095,2.75064868,163.22,163.2,6.1271]
[1752645078094,2.75064868,163.22,163.19,6.1274]
[1752645078296,2.75064868,163.21,163.19,6.1274]
[1752645078801,2.75064868,163.21,163.18,6.1277]
[1752645079804,8.87824868,163.19,163.14,2.75064868]
[1752645079996,2.75064868,163.18,163.14,2.75064868]
[1752645080198,2.75064868,163.17,163.14,6.1292]
[1752645080899,2.75064868,163.17,163.12,8.88044868]
[1752645081404,6.129,163.16,163.12,6.1298]
[1752645082703,8.87904868,163.17,163.13,6.1297]
[1752645082902,10.42953198,163.17,163.13,6.1297]
[1752645085802,6.1289,163.16,163.12,6.1301]
[1752645086595,6.1291,163.15,163.12,6.1301]
[1752645086904,6.1291,163.15,163.11,6.1303]
[1752645087601,6.1291,163.15,163.12,6.13]
[1752645087801,6.1288,163.16,163.12,6.13]
[1752645089307,6.129,163.15,163.12,6.13]
[1752645090709,6.1287,163.16,163.13,6.1297]
[1752645090915,6.1287,163.16,163.08,4.30113198]
[1752645091210,6.1287,163.16,163.09,5.04922747]
[1752645091402,6.1287,163.16,163.11,6.1305]
[1752645093209,6.1287,163.16,163.08,4.30113198]
[1752645093409,6.1287,163.16,163.09,5.04727452]
[1752645093613,6.1287,163.16,163.08,4.30113198]
[1752645093810,6.1287,163.16,163.11,6.1303]
[1752645094611,6.1287,163.16,163.11,6.1302]
[1752645094806,6.1287,163.16,163.09,4.30113198]
[1752645095806,6.1287,163.16,163.11,6.1302]
[1752645097811,4.30113198,163.15,163.11,6.1302]
[1752645098012,10.43023198,163.15,163.1,6.1307]
[1752645098414,10.43023198,163.15,163.11,6.1305]
[1752645101110,4.30113198,163.15,163.1,6.1307]
[1752645102216,6.13,163.13,163.1,6.1307]
[1752645102515,4.30113198,163.15,163.09,6.1311]
[1752645102712,4.30113198,163.13,163.09,6.1311]
[1752645103012,2.75431137,163.11,163.09,6.1311]
[1752645104920,8.88521137,163.11,163.07,6.1319]
[1752645105413,2.75431137,163.1,163.07,6.1319]
[1752645105811,2.75431137,163.1,163.08,6.1316]
[1752645106220,2.75431137,163.1,163.06,2.75431137]
[1752645106519,8.88521137,163.11,163.07,2.75431137]
[1752645106819,2.75431137,163.11,163.07,2.75431137]
[1752645107118,2.75431137,163.11,163.02,716.25076762]
[1752645107322,2.75431137,163.11,163.07,2.75431137]
[1752645108121,8.88481137,163.11,163.07,8.88601137]
[1752645108625,8.88481137,163.11,163.08,6.1316]
[1752645108626,2.75431137,163.11,163.08,6.1316]
[1752645109222,2.75431137,163.11,163.02,716.25076762]
[1752645109522,2.75431137,163.11,163.07,2.75431137]
[1752645109822,2.75431137,163.11,163.07,8.88601137]
[1752645110620,2.75431137,163.11,163.02,716.25076762]
[1752645110821,2.75431137,163.11,163.07,2.75431137]
[1752645111221,8.88511137,163.11,163.07,8.88621137]
[1752645112223,2.75431137,163.11,163.08,6.1316]
[1752645112920,8.88491137,163.11,163.07,6.1319]
[1752645113125,2.75431137,163.11,163.07,2.75431137]
[1752645113724,33.0,163.14,163.07,2.75431137]
[1752645113926,2.75431137,163.11,163.07,2.75431137]
[1752645114324,8.88491137,163.11,163.07,8.88601137]
[1752645115030,2.75431137,163.11,163.08,6.1316]
[1752645116637,6.1299,163.13,163.09,6.1312]
[1752645116827,2.75431137,163.12,163.08,2.75431137]
[1752645118134,33.0,163.14,163.09,6.1312]
[1752645118334,2.75431137,163.13,163.09,6.1312]
[1752645118634,2.75431137,163.13,163.1,6.1308]
[1752645118833,33.0,163.14,163.11,2.75431137]
[1752645119028,2.75431137,163.15,163.11,2.75431137]
[1752645119229,8.88331137,163.15,163.11,8.88461137]
[1752645120028,8.88331137,163.15,163.12,6.1301]
[1752645120939,8.88331137,163.15,163.11,8.88471137]
[1752645121439,8.88371137,163.14,163.11,8.88471137]
[1752645121630,8.88371137,163.14,163.11,6.1304]
[1752645122041,8.88421137,163.13,163.09,2.75431137]
[1752645122334,2.75431137,163.13,163.09,2.75431137]
[1752645122734,8.88391137,163.14,163.1,8.88511137]
[1752645125234,2.75431137,163.14,163.1,2.75431137]
[1752645125441,2.75431137,163.15,163.1,2.75431137]
[1752645125638,33.0,163.2,163.12,2.75431137]
[1752645125835,2.75431137,163.16,163.12,2.75431137]
[1752645126040,8.88321137,163.16,163.12,2.75431137]
[1752645127745,8.88321137,163.16,163.12,8.88421137]
[1752645130550,8.88321137,163.16,163.13,6.1297]
[1752645132350,6.1289,163.16,163.13,6.1297]
[1752645132550,8.88321137,163.16,163.13,6.1297]
[1752645134450,6.1291,163.15,163.12,6.1301]
[1752645134853,8.88341137,163.15,163.11,2.75431137]
[1752645135045,8.88341137,163.15,163.1,2.75431137]
[1752645135351,6.1294,163.14,163.11,11.15970935]
[1752645135649,6.1294,163.14,163.11,6.1303]
[1752645140950,6.1294,163.14,163.11,2.75431137]
[1752645141252,8.88341137,163.15,163.11,2.75431137]
[1752645142153,8.88341137,163.15,163.11,8.88471137]
[1752645144254,8.88341137,163.15,163.12,6.1301]
[1752645148855,6.1287,163.16,163.13,6.1296]
[1752645149052,33.0,163.18,163.11,2.75279563]
[1752645149356,2.75279563,163.17,163.11,2.75279563]
[1752645149755,8.88129563,163.17,163.13,6.1295]
[1752645151159,6.1285,163.17,163.13,6.1295]
[1752645151360,8.88129563,163.17,163.13,6.1295]
[1752645151760,6.1287,163.16,163.12,6.13]
[1752645152059,2.75283565,163.15,163.12,6.13]
[1752645152460,8.88183565,163.15,163.11,8.88323565]
[1752645152760,2.75283565,163.15,163.11,6.1304]
[1752645153758,8.88203565,163.15,163.11,6.1304]
[1752645154159,8.88203565,163.15,163.12,6.1301]
[1752645154961,6.1288,163.16,163.13,6.1297]
[1752645155158,2.75283565,163.15,163.13,6.1297]
[1752645156161,2.75283565,163.15,163.12,6.13]
[1752645157463,8.88193565,163.15,163.12,6.13]
[1752645158263,2.75283565,163.15,163.12,6.13]
[1752645158664,2.75283565,163.15,163.13,6.1296]
[1752645159562,2.75283565,163.15,163.12,6.13]
[1752645160165,8.88183565,163.15,163.12,6.13]
[1752645161666,8.88183565,163.15,163.11,6.1304]
[1752645162067,8.88194792,163.15,163.11,6.1304]
[1752645163667,6.129,163.15,163.11,6.1304]
[1752645163863,8.88194792,163.15,163.11,6.1304]
[1752645164169,2.75294792,163.15,163.12,6.1301]
[1752645164468,2.75294792,163.15,163.07,5.15433883]
[1752645164668,8.88224792,163.15,163.11,6.1303]
[1752645167769,33.0,163.17,163.07,5.15433883]
[1752645167970,198.45,163.21,163.07,5.15433883]
[1752645167971,2.75294792,163.13,163.09,2.75294792]
[1752645168269,2.75294792,163.13,163.11,6.1305]
[1752645168570,2.75294792,163.14,163.11,6.1305]
[1752645171673,2.75294792,163.14,163.12,6.13]
[1752645172867,33.0,163.16,163.13,6.1298]
[1752645173072,2.75294792,163.15,163.13,6.1298]
[1752645173978,33.0,163.16,163.14,6.1294]
[1752645175274,33.0,163.16,163.13,6.1296]
[1752645175979,35.75294792,163.16,163.13,6.1296]
[1752645176971,35.75263273,163.16,163.13,6.1296]
[1752645178478,41.88153273,163.16,163.12,2.75263273]
[1752645179379,35.75263273,163.16,163.13,6.1296]
[1752645179679,35.75263273,163.16,163.12,2.75263273]
[1752645180280,35.75263273,163.16,163.14,6.1292]
[1752645184773,18.4,163.23,163.07,6.7788538]
[1752645184774,6.1267,163.22,163.15,7.77768074]
[1752645184981,562.82,163.24,163.2,2.74986859]
[1752645185381,6.1262,163.23,163.2,2.74985535]
[1752645185886,562.82,163.24,163.2,2.74985535]
[1752645186083,562.82,163.24,163.21,8.87655535]
[1752645187784,33.0,163.24,163.21,8.87655535]
[1752645189082,33.0,163.24,163.22,2.74985535]
[1752645190387,33.0,163.24,163.22,8.87625535]
[1752645190880,6.1251,163.26,163.23,2.74985535]
[1752645191082,188.87445535,163.27,163.23,2.74985535]
[1752645191482,182.74985535,163.27,163.23,8.87575535]
[1752645192889,2.74985535,163.26,163.13,5.15433883]
[1752645193188,2.74985535,163.22,163.14,4.97025036]
[1752645193389,2.74985535,163.22,163.18,2.74985535]
[1752645193889,2.74985535,163.23,163.19,2.74985535]
[1752645194391,2.74985535,163.23,163.2,6.1269]
[1752645195090,2.74985535,163.21,163.11,12.2607]
[1752645195389,2.74985535,163.2,163.16,2.74985535]
[1752645196090,8.87695535,163.2,163.17,6.128]
[1752645199191,6.1271,163.2,163.17,6.128]
[1752645199594,6.1275,163.19,163.17,6.128]
[1752645199785,6.1275,163.19,163.16,6.1285]
[1752645200694,6.1273,163.2,163.17,6.1282]
[1752645200895,4.2990557,163.22,163.14,4.2990557]
[1752645201496,6.1277,163.19,163.16,6.1285]
[1752645201695,4.2990557,163.2,163.12,4.2990557]
[1752645202394,33.0,163.23,163.1,534.0390557]
[1752645202395,4.2990557,163.18,163.1,534.0390557]
[1752645202990,6.1283,163.17,163.14,6.1291]
[1752645203396,6.128,163.18,163.15,6.1289]
[1752645203693,10.4270557,163.18,163.15,6.1289]
[1752645204399,4.2990557,163.16,163.09,4.2990557]
[1752645204692,4.2990557,163.16,163.08,4.2990557]
[1752645204894,4.2990557,163.16,163.1,6.1307]
[1752645205391,6.1298,163.13,163.1,6.1307]
[1752645205589,4.2990557,163.16,163.1,6.1307]
[1752645205794,4.2990557,163.16,163.11,6.1304]
[1752645206296,6.1296,163.14,163.11,6.1304]
[1752645206700,6.1298,163.13,163.1,6.1308]
[1752645207595,6.1295,163.14,163.11,6.1303]
[1752645209804,6.1298,163.13,163.1,6.1308]
[1752645210100,6.1298,163.13,163.07,4.2990557]
[1752645210301,43.4282557,163.15,163.11,6.1305]
[1752645210797,6.1294,163.14,163.11,6.1305]
[1752645211104,6.1294,163.14,163.09,6.1309]
[1752645211405,6.1294,163.14,163.07,4.2990557]
[1752645212602,6.1294,163.14,163.09,6.131]
[1752645214201,6.1294,163.14,163.1,6.1308]
[1752645214404,33.0,163.15,163.07,4.2990557]
[1752645214804,33.0,163.15,163.11,6.1305]
[1752645216904,33.0,163.15,163.1,6.1308]
[1752645218907,39.1291,163.15,163.1,6.1308]
[1752645220002,33.0,163.15,163.1,6.1308]
[1752645220409,39.129,163.15,163.1,6.1308]
[1752645223106,2.75328001,163.14,163.1,8.88408001]
[1752645224307,8.88268001,163.14,163.09,2.75328001]
[1752645224503,2.75328001,163.13,163.09,2.75328001]
[1752645225108,2.75328001,163.13,163.1,6.1308]
[1752645229208,8.88268001,163.14,163.1,6.1308]
[1752645235221,6.1298,163.13,163.1,6.1308]
[1752645235818,8.88288001,163.14,163.1,6.1308]
[1752645236015,2.75328001,163.13,163.1,6.1308]
[1752645236817,8.88308001,163.13,163.1,6.1308]
[1752645238213,8.88308001,163.13,163.09,8.88448001]
[1752645239420,2.75328001,163.13,163.08,8.88478001]
[1752645239915,8.88368001,163.12,163.08,8.88478001]
[1752645240322,8.88368001,163.12,163.09,6.1312]
[1752645241221,2.75328001,163.12,163.09,6.1312]
[1752645242924,8.88348001,163.12,163.09,6.1312]
[1752645243722,6.1302,163.12,163.08,8.88488001]
[1752645243922,6.1306,163.11,163.08,6.1316]
[1752645244125,2.75328001,163.12,163.08,8.88488001]
[1752645244526,8.88368001,163.12,163.08,8.88488001]
[1752645244925,8.88368001,163.12,163.09,6.1313]
[1752645247125,8.88368001,163.12,163.09,6.1313]
[1752645249229,2.75328001,163.12,163.07,2.75328001]
[1752645249427,2.75328001,163.12,163.08,5.00067226]
[1752645249628,8.88368001,163.12,163.09,11.13197226]
[1752645249828,8.88368001,163.12,163.09,6.1313]
[1752645250127,2.75328001,163.12,163.09,6.1313]
[1752645250328,8.88398001,163.11,163.08,6.1315]
[1752645250530,8.88398001,163.11,163.09,5.04476473]
[1752645250732,8.88398001,163.11,163.09,0.04420313]
[1752645251732,8.88418001,163.1,163.09,0.04420313]
[1752645252429,6.1309,163.1,163.09,0.04420313]
[1752645252834,2.75328001,163.11,163.09,0.04420313]
[1752645253639,2.75328001,163.1,163.09,0.04420313]
[1752645254137,8.88418001,163.1,163.09,0.04420313]
[1752645257838,41.88398001,163.11,163.09,0.04420313]
[1752645258035,39.1307,163.11,163.09,0.04420313]
[1752645258237,41.88398001,163.11,163.09,0.04420313]
[1752645258638,35.75328001,163.11,163.09,0.04420313]
[1752645259338,41.88388001,163.11,163.09,0.04420313]
[1752645260141,39.1306,163.11,163.09,0.04420313]
[1752645260342,41.88388001,163.11,163.09,0.04420313]
[1752645260648,2.75328001,163.1,163.09,0.04420313]
[1752645262038,8.88418001,163.1,163.09,0.04420313]
[1752645264039,6.1309,163.1,163.09,0.04420313]
[1752645264243,2.75328001,163.1,163.09,0.04420313]
[1752645267451,8.92348487,163.12,163.09,0.04420313]
[1752645267649,0.03990486,163.12,163.09,0.04420313]
[1752645268052,0.03990486,163.12,163.1,2.75328001]
[1752645268250,0.03990486,163.12,163.09,2.79748314]
[1752645268554,0.03990486,163.12,163.11,6.1306]
[1752645270850,0.03990486,163.12,163.1,6.1308]